fUST/lending_fUST_20260203
["ID","MTS","AMOUNT","RATE_DAILY","PERIOD"]
[404357192,1770075031771,-1680.0,0.00032155,3]
[404357193,1770075031780,-720.0,0.00034815,3]
[404357194,1770075031789,-294.72,0.0003694,60]
[404357195,1770075031799,-400.0,0.00037356,2]
[404357196,1770075031808,-400.0,0.00037356,3]
[404357197,1770075031818,-400.0,0.00037356,3]
[404357198,1770075031828,-400.0,0.00037356,3]
[404357199,1770075031838,-400.0,0.00037357,3]
[404357200,1770075031847,-5000.0,0.0003968,30]
[404357201,1770075031856,-737.47131629,0.0003968,30]
[404357202,1770075031865,-149.999999,0.0003968,14]
[404357203,1770075031874,-2000.0,0.0003968,30]
[404357204,1770075031884,-236.44,0.000397,2]
[404357205,1770075031893,-1232.03,0.00039728,2]
[404357206,1770075031903,-150.30267324,0.00039728,2]
[404357207,1770075031912,-560.0,0.00039956,5]
[404357208,1770075031921,-200.0,0.00039956,5]
[404357209,1770075031931,-200.0,0.00039956,5]
[404357210,1770075031940,-200.0,0.00039957,5]
[404357211,1770075031949,-93896.59921995,0.0004,2]
[404357212,1770075031958,-500.0,0.00040699,5]
[404357213,1770075031967,-8563.24513142,0.00042238,28]
[404357214,1770075031976,-783.0,0.00042737,5]
[404357215,1770075031985,-477.0,0.00045712,5]
[404357216,1770075031995,-450.54339209,0.00048609,2]
[404357217,1770075032006,-6673.0719077,0.000489,2]
[404357218,1770075032015,-2151.66300041,0.00049,120]
[404357219,1770075032028,-393.315,0.00049,120]
[404357254,1770075037927,-1020.02199959,0.00049,120]
[404357256,1770075037936,-405.0,0.0004936,31]
[404357258,1770075037946,-4181.3182444,0.00049375,2]
[404357260,1770075037955,-1066.15,0.000495,120]
[404357263,1770075037965,-6324.95470909,0.00049789,120]
[404357264,1770075037976,-150.0,0.00049789,120]
[404357267,1770075037987,-3783.72373487,0.00049874,2]
[404357268,1770075037999,-229.37912375,0.000499,25]
[404357271,1770075038010,-309.13958992,0.000499,22]
[404357272,1770075038019,-899.56,0.0004997,10]
[404357274,1770075038028,-1079.47,0.0004998,10]
[404357277,1770075038039,-341.16,0.0004999,30]
[404357278,1770075038049,-3243.4876944,0.0004999,4]
[404357280,1770075038058,-151.0,0.00049999,30]
[404357282,1770075038068,-131602.02098278,0.0005,14]
[404357283,1770075038078,-1035.78973503,0.0005,120]
[404357284,1770075038087,-200.0,0.0005,120]
[404357285,1770075038096,-182499.13576725,0.0005,30]
[404357286,1770075038106,-100000.0,0.0005,120]
[404357287,1770075038116,-154.0,0.0005,120]
[404357288,1770075038126,-305.59062766,0.0005,120]
[404357289,1770075038135,-225.09333528,0.0005,20]
[404357290,1770075038145,-539.20959445,0.0005,10]
[404357291,1770075038155,-560.62076727,0.0005,120]
[404357292,1770075038164,-199.0,0.0005,7]
[404357293,1770075038174,-806.15776122,0.0005,120]
[404357294,1770075038183,-170.08478499,0.0005,120]
[404357295,1770075038193,-305.72424165,0.0005,120]
[404357296,1770075038286,-495.08064252,0.0005,30]
[404357297,1770075038302,-176.08758123,0.0005,120]
[404357298,1770075038312,-159.69,0.0005,14]
[404357299,1770075038321,-171.05,0.0005,14]
[404357300,1770075038331,-168.3,0.0005,14]
[404357301,1770075038340,-1000.0,0.0005,120]
[404357302,1770075038350,-1762.13,0.0005,14]
[404357303,1770075038359,-154.7,0.0005,30]
[404357304,1770075038368,-1041.66666667,0.0005,120]
[404357305,1770075038377,-1041.66666667,0.0005,30]
[404357307,1770075038387,-160.0,0.0005,120]
[404357309,1770075038396,-151.0,0.0005,30]
[404357311,1770075038406,-151.0,0.0005,30]
[404357313,1770075038416,-500.0,0.0005,120]
[404357316,1770075038433,-151.0,0.0005,30]
[404357318,1770075038445,-151.0,0.0005,30]
[404357320,1770075038455,-151.0,0.0005,30]
[404357322,1770075038465,-151.0,0.0005,30]
[404357324,1770075038475,-151.0,0.0005,30]
[404357326,1770075038484,-151.0,0.0005,30]
[404357329,1770075038494,-292.0,0.0005,30]
[404357331,1770075038504,-3620.0,0.0005,120]
[404357333,1770075038514,-1998.91352845,0.0005,120]
[404357335,1770075038524,-508.5145,0.0005,10]
[404357337,1770075038533,-508.5145,0.0005,14]
[404357338,1770075038543,-508.511,0.0005,20]
[404357340,1770075038552,-508.5145,0.0005,10]
[404357342,1770075038562,-215.1255,0.0005,14]
[404357344,1770075038571,-179.0,0.0005,120]
[404357346,1770075038582,-540.5812824,0.0005011,4]
[404357349,1770075038593,-15000.0,0.0005012,14]
[404357351,1770075038602,-500.0,0.00050274,120]
[404357353,1770075038612,-1621.7438472,0.0005049,4]
[404357355,1770075038622,-620.84213831,0.000505,60]
[404357357,1770075038632,-50000.0,0.000505,60]
[404357359,1770075038642,-100000.0,0.000505,60]
[404357361,1770075038653,-264.256345,0.000505,120]
[404357363,1770075038663,-264.256345,0.000505,120]
[404357365,1770075038672,-264.256345,0.000505,120]
[404357367,1770075038681,-264.256345,0.000505,120]
[404357369,1770075038691,-151.0,0.00050684,32]
[404357371,1770075038701,-154.0,0.000507,120]
[404357373,1770075038711,-305.857599,0.00050721,30]
[404357375,1770075038720,-305.857599,0.00050721,30]
[404357377,1770075038730,-305.857599,0.00050721,30]
[404357379,1770075038740,-600.0,0.00050999,120]
[404357381,1770075038749,-1000.0,0.00051,120]
[404357383,1770075038759,-3000.0,0.00051,85]
[404357385,1770075038768,-3000.0,0.0005101,85]
[404357387,1770075038778,-3000.0,0.0005102,85]
[404357389,1770075038788,-3000.0,0.0005103,85]
[404357391,1770075038797,-3000.0,0.0005104,85]
[404357393,1770075038807,-3000.0,0.0005105,85]
[404357395,1770075038817,-3000.0,0.0005106,85]
[404357397,1770075038827,-5110.787976,0.0005107,85]
[404357399,1770075038836,-151.0,0.00051369,34]
[404357401,1770075038846,-154.0,0.000514,120]
[404357403,1770075038855,-150.0,0.00051789,120]
[404357405,1770075038866,-540.5812824,0.0005189,4]
[404357407,1770075038875,-50000.0,0.000519,120]
[404357409,1770075038885,-540.5812824,0.0005199,4]
[404357411,1770075038895,-200.0,0.00052,120]
[404357413,1770075038904,-1000.0,0.00052,120]
[404357415,1770075038913,-3000.0,0.00052,120]
[404357417,1770075038923,-151.0,0.00052054,36]
[404357419,1770075038934,-154.0,0.000521,120]
[404357421,1770075038944,-171.060939,0.0005225,60]
[404357423,1770075038954,-3000.0,0.000525,120]
[404357425,1770075038964,-710.0,0.0005256,31]
[404357427,1770075038973,-151.0,0.00052739,38]
[404357429,1770075038983,-154.0,0.000528,120]
[404357431,1770075038992,-305.857599,0.00052801,30]
[404357433,1770075039005,-3209.366528,0.0005282,60]
[404357435,1770075039016,-540.5812824,0.0005299,4]
[404357437,1770075039025,-977.99697711,0.00053,120]
[404357439,1770075039034,-82526.51588601,0.00053,120]
[404357441,1770075039044,-1000.0,0.00053,120]
[404357443,1770075039054,-264.256345,0.00053,120]
[404357445,1770075039063,-264.256345,0.00053,120]
[404357447,1770075039072,-264.256345,0.00053,120]
[404357449,1770075039082,-264.256345,0.00053,120]
[404357451,1770075039091,-231.63,0.00053424,40]
[404357453,1770075039101,-540.5812824,0.0005357,4]
[404357455,1770075039110,-1512.514315,0.0005358,60]
[404357457,1770075039119,-154.0,0.000536,120]
[404357459,1770075039130,-1762.13,0.000536,14]
[404357461,1770075039140,-1041.66666667,0.00053662,2]
[404357463,1770075039149,-740.75809701,0.00053682,2]
[404357465,1770075039159,-160.0,0.00053682,2]
[404357467,1770075039168,-305.857599,0.00053952,30]
[404357469,1770075039177,-305.857599,0.00053952,30]
[404357471,1770075039187,-305.857599,0.00053952,30]
[404357473,1770075039196,-305.857599,0.00053952,30]
[404357475,1770075039206,-305.857599,0.00053952,30]
[404357477,1770075039215,-305.857599,0.00053952,30]
[404357479,1770075039225,-1000.0,0.00054,120]
[404357481,1770075039235,-154.0,0.000543,120]
[404357483,1770075039244,-540.5812824,0.00054784,4]
[404357485,1770075039254,-300.0,0.00054794,2]
[404357487,1770075039264,-300.0,0.00054794,2]
[404357490,1770075039278,-1000.0,0.00054794,120]
[404357492,1770075039287,-300.0,0.00054794,2]
[404357494,1770075039297,-500.0,0.00054794,120]
[404357496,1770075039307,-421.604378,0.00054794,120]
[404357498,1770075039317,-577.68403427,0.00054794,120]
[404357500,1770075039327,-11584.42,0.00054794,120]
[404357501,1770075039336,-500.0,0.00054794,120]
[404357503,1770075039346,-930.83,0.00054794,120]
[404357505,1770075039355,-517.57155927,0.00054794,120]
[404357507,1770075039365,-1743.7,0.00054794,120]
[404357509,1770075039375,-500.0,0.00054794,120]
[404357511,1770075039385,-518.51403624,0.00054794,120]
[404357512,1770075039394,-526.79225003,0.00054794,120]
[404357514,1770075039404,-600.95746099,0.00054794,120]
[404357516,1770075039413,-500.0,0.00054794,120]
[404357518,1770075039423,-514.69391865,0.00054794,120]
[404357520,1770075039432,-500.0,0.00054794,120]
[404357522,1770075039441,-151.0,0.00054794,120]
[404357524,1770075039451,-403.43716649,0.00054794,120]
[404357526,1770075039460,-1093.16,0.00054794,120]
[404357528,1770075039470,-602.46,0.00054794,120]
[404357530,1770075039479,-500.0,0.00054794,120]
[404357532,1770075039488,-524.84027864,0.00054794,120]
[404357534,1770075039497,-1000.0,0.00054794,2]
[404357536,1770075039506,-514.92,0.00054794,120]
[404357538,1770075039516,-162.45769856,0.00054794,120]
[404357540,1770075039525,-500.0,0.00054794,120]
[404357542,1770075039534,-526.30987633,0.00054794,120]
[404357544,1770075039544,-701.27,0.00054794,120]
[404357546,1770075039553,-500.0,0.00054794,120]
[404357547,1770075039563,-500.0,0.00054794,120]
[404357550,1770075039572,-500.0,0.00054794,120]
[404357552,1770075039583,-577.255489,0.00054794,120]
[404357553,1770075039592,-2006.51,0.00054794,120]
[404357555,1770075039602,-500.0,0.00054794,120]
[404357557,1770075039611,-500.0,0.00054794,120]
[404357559,1770075039620,-500.0,0.00054794,120]
[404357561,1770075039630,-500.0,0.00054794,120]
[404357563,1770075039641,-563.75,0.00054794,120]
[404357565,1770075039650,-3926.86,0.00054794,120]
[404357567,1770075039660,-500.0,0.00054794,120]
[404357569,1770075039670,-500.0,0.00054794,120]
[404357571,1770075039679,-500.0,0.00054794,2]
[404357573,1770075039689,-500.0,0.00054794,120]
[404357575,1770075039699,-500.0,0.00054794,120]
[404357577,1770075039709,-500.0,0.00054794,120]
[404357579,1770075039718,-500.0,0.00054794,120]
[404357581,1770075039728,-500.0,0.00054794,120]
[404357583,1770075039737,-500.0,0.00054794,120]
[404357585,1770075039747,-500.0,0.00054794,120]
[404357587,1770075039756,-500.0,0.00054794,120]
[404357589,1770075039766,-500.0,0.00054794,120]
[404357591,1770075039775,-623.36549248,0.00054794,120]
[404357593,1770075039786,-1865.52,0.00054794,120]
[404357595,1770075039796,-500.0,0.00054794,2]
[404357597,1770075039806,-16752.05,0.00054794,120]
[404357599,1770075039815,-500.0,0.00054794,2]
[404357601,1770075039825,-500.0,0.00054794,120]
[404357603,1770075039834,-500.0,0.00054794,120]
[404357605,1770075039844,-527.44899864,0.00054794,120]
[404357607,1770075039854,-500.0,0.00054794,120]
[404357609,1770075039864,-1254.24,0.00054794,120]
[404357611,1770075039874,-330.10239056,0.00054794,120]
[404357613,1770075039884,-250.0,0.00054795,120]
[404357615,1770075039894,-151.0,0.00054795,120]
[404357617,1770075039903,-152.70562,0.00054795,120]
[404357619,1770075039912,-150.0,0.00054795,14]
[404357621,1770075039922,-450.0,0.000549,120]
[404357622,1770075039931,-1000.0,0.00055,120]
[404357624,1770075039941,-1000.0,0.00055,2]
[404357626,1770075039951,-154.0,0.00055,120]
[404357628,1770075039961,-1000.0,0.00055,120]
[404357630,1770075039970,-154.7,0.00055,30]
[404357632,1770075039980,-1998.91352845,0.00055,120]
[404357634,1770075039989,-300.0,0.00055068,2]
[404357636,1770075040001,-300.0,0.00055342,2]
[404357638,1770075040011,-250.0,0.00055342,14]
[404357640,1770075040021,-151.0,0.000556,28]
[404357642,1770075040030,-279.72,0.00055616,2]
[404357644,1770075040039,-154.0,0.000557,120]
[404357646,1770075040050,-350.0,0.0005589,14]
[404357648,1770075040059,-1000.0,0.00056,120]
[404357650,1770075040069,-720.0,0.00056099,120]
[404357652,1770075040080,-151.0,0.000563,24]
[404357654,1770075040090,-151.0,0.000563,22]
[404357656,1770075040100,-154.0,0.000564,120]
[404357666,1770075040191,-776.41,0.0005643,2]
[404357668,1770075040202,-450.0,0.00056438,14]
[404357670,1770075040211,-3000.0,0.000565,120]
[404357672,1770075040220,-3000.0,0.000565,120]
[404357674,1770075040229,-1621.7438472,0.0005689,5]
[404357676,1770075040238,-49987.18,0.000569,120]
[404357678,1770075040249,-88888.0,0.000569,120]
[404357680,1770075040259,-264.256345,0.000569,120]
[404357682,1770075040268,-264.256345,0.000569,120]
[404357684,1770075040278,-264.256345,0.000569,120]
[404357686,1770075040288,-264.256345,0.000569,120]
[404357688,1770075040297,-550.0,0.00056986,14]
[404357690,1770075040307,-1081.1625648,0.0005699,5]
[404357692,1770075040317,-511.15,0.0005699,120]
[404357694,1770075040327,-511.15,0.0005699,120]
[404357696,1770075040337,-511.15,0.0005699,120]
[404357698,1770075040347,-816.62,0.0005699,120]
[404357700,1770075040358,-258974.11718737,0.00057,120]
[404357702,1770075040368,-1000.0,0.00057,120]
[404357704,1770075040377,-264.256345,0.00057,120]
[404357705,1770075040387,-264.256345,0.00057,120]
[404357707,1770075040396,-264.256345,0.00057,120]
[404357709,1770075040405,-264.256345,0.00057,120]
[404357711,1770075040416,-552.085464,0.00057068,30]
[404357713,1770075040426,-154.0,0.000571,120]
[404357715,1770075040436,-504.03916395,0.000571,120]
[404357717,1770075040446,-1762.13,0.000575,14]
[404357719,1770075040455,-751.84673265,0.00057534,14]
[404357721,1770075040466,-154.0,0.000578,120]
[404357723,1770075040475,-1000.0,0.00058,120]
[404357725,1770075040485,-280.37,0.00058403,30]
[404357727,1770075040494,-154.0,0.000585,120]
[404357729,1770075040503,-154.7,0.000587,30]
[404357731,1770075040513,-1000.0,0.00059,120]
[404357733,1770075040522,-1000.0,0.00059,120]
[404357735,1770075040533,-154.0,0.000592,120]
[404357737,1770075040543,-3000.0,0.000595,120]
[404357739,1770075040554,-264.256345,0.00059826,120]
[404357741,1770075040564,-264.256345,0.00059826,120]
[404357743,1770075040574,-264.256345,0.00059826,120]
[404357745,1770075040585,-264.25635,0.00059826,120]
[404357747,1770075040595,-17957.49763509,0.00059826,30]
[404357750,1770075040610,-791.19241018,0.00059826,30]
[404357754,1770075040640,-422.73795588,0.00054784,10]
[404358298,1770075046846,-4769.85555342,0.0005445,2]
[404358300,1770075046856,-326.89204412,0.00054784,10]
[404358302,1770075046866,-31926.02896356,0.00059826,30]
[404358304,1770075046878,-3722.22572699,0.00059826,30]
[404358317,1770075047003,-1319.90079212,0.00059826,30]
[404358320,1770075047033,-3628.69651627,0.00059826,30]
[404358490,1770075048763,-3306.4999967,0.00059826,30]
[404359733,1770076204828,2769.53,9e-05,2]
[404359734,1770076205421,2769.53,9.1e-05,2]
[404359735,1770076206003,2769.53,9.1e-05,2]
[404359737,1770076206578,1691.42,9.2e-05,2]
[404359738,1770076206608,1078.11,9.2e-05,2]
[404359739,1770076207176,2769.53,9.3e-05,2]
[404359740,1770076207773,2769.53,9.4e-05,2]
[404359741,1770076208364,2769.53,9.5e-05,2]
[404359742,1770076208868,613.31,9.6e-05,2]
[404359743,1770076208899,2156.22,9.6e-05,2]
[404359744,1770076209451,2769.53,9.6e-05,2]
[404359745,1770076210029,2769.53,9.7e-05,2]
[404359746,1770076210518,2304.73,9.8e-05,2]
[404359747,1770076210544,464.8,9.8e-05,2]
[404359748,1770076211100,2769.53,9.9e-05,2]
[404359749,1770076211604,2769.53,0.0001,2]
[404359750,1770076212703,2769.53,0.0001,2]
[404359751,1770076213285,2769.53,0.000101,2]
[404359752,1770076213859,2769.53,0.000102,2]
[404359753,1770076214452,2769.53,0.000103,2]
[404359754,1770076214981,2769.53,0.000104,2]
[404359755,1770076215566,2769.53,0.000105,2]
[404359756,1770076216060,1471.30197585,0.000105,2]
[404359757,1770076216084,1298.22802415,0.000105,2]
[404359758,1770076216569,2769.53,0.000106,2]
[404359759,1770076217578,2769.53,0.000107,2]
[404359760,1770076218184,2769.53,0.000108,2]
[404359761,1770076218790,2769.53,0.000109,2]
[404359762,1770076219292,2769.53,0.000109,2]
[404359763,1770076219797,2769.53,0.00011,2]
[404359764,1770076220293,1691.42,0.000111,2]
[404359765,1770076220320,1078.11,0.000111,2]
[404359766,1770076220782,2769.53,0.000112,2]
[404359767,1770076221369,2769.53,0.000113,2]
[404359768,1770076221950,2769.53,0.000114,2]
[404359769,1770076222444,613.31,0.000114,2]
[404359770,1770076222482,2156.22,0.000114,2]
[404359771,1770076223049,2769.53,0.000115,2]
[404359772,1770076223561,2769.53,0.000116,2]
[404359773,1770076224151,2304.73,0.000117,2]
[404359774,1770076224183,464.8,0.000117,2]
[404359775,1770076224604,2769.53,0.000118,2]
[404359776,1770076225156,2769.53,0.000119,2]
[404359777,1770076225655,2769.53,0.000119,2]
[404359778,1770076226196,1226.62,0.00012,2]
[404359779,1770076226225,1542.91,0.00012,2]
[404359781,1770076226801,2769.53,0.000121,2]
[404359784,1770076227409,2769.53,0.000122,2]
[404359787,1770076227990,2769.53,0.000123,2]
[404359789,1770076228575,148.51,0.000123,2]
[404359791,1770076228607,2621.02,0.000123,2]
[404359793,1770076229161,2769.53,0.000124,2]
[404359796,1770076229654,2769.53,0.000125,2]
[404359797,1770076230231,1839.93,0.000126,2]
[404359798,1770076230259,929.6,0.000126,2]
[404359799,1770076230724,2769.53,0.000127,2]
[404359800,1770076231142,2769.53,0.000128,2]
[404359810,1770076231729,2769.53,0.000128,2]
[404359814,1770076231886,-1000.0,0.00027,2]
[404359815,1770076231895,-1561.100114,0.0003,2]
[404359816,1770076231905,-692.68999028,0.00036895,120]
[404359817,1770076231914,-168.41,0.00036995,60]
[404359818,1770076231924,-168.41,0.00037095,60]
[404359819,1770076231934,-168.41,0.00037195,60]
[404359820,1770076231944,-168.41,0.00037295,60]
[404359821,1770076231954,-1168.0,0.00037394,3]
[404359822,1770076231964,-168.41,0.00037395,60]
[404359823,1770076231973,-168.41,0.00037495,60]
[404359824,1770076231982,-168.42,0.00037595,60]
[404359825,1770076231991,-276.042732,0.00039057,2]
[404359826,1770076232000,-208.01484243,0.0003958,2]
[404359827,1770076232010,-500.0,0.00039679,2]
[404359829,1770076232021,-14681.8615316,0.00039728,2]
[404359830,1770076232034,-206.42674827,0.00039728,2]
[404359832,1770076232043,-151.0,0.00039734,30]
[404359833,1770076232052,-381.0,0.00039734,30]
[404359834,1770076232063,-1287.94247422,0.00039734,30]
[404359835,1770076232074,-3712.05752578,0.00039734,30]
[404359836,1770076232083,-156.9949476,0.00045428,120]
[404359837,1770076232093,-387.62026733,0.00045528,120]
[404359838,1770076232102,-500.0,0.00045528,7]
[404359839,1770076232112,-500.0,0.00045528,31]
[404359840,1770076232121,-500.0,0.00045528,120]
[404359841,1770076232131,-500.0,0.00045528,7]
[404359842,1770076232141,-500.0,0.00045528,31]
[404359843,1770076232151,-500.0,0.00045528,120]
[404359844,1770076232163,-500.0,0.00045528,7]
[404359845,1770076232173,-500.0,0.00045528,31]
[404359846,1770076232184,-500.0,0.00045528,120]
[404359847,1770076232195,-500.0,0.00045528,7]
[404359848,1770076232205,-500.0,0.00045528,31]
[404359849,1770076232215,-500.0,0.00045528,7]
[404359850,1770076232226,-500.0,0.00045528,120]
[404359851,1770076232237,-500.0,0.00045528,31]
[404359852,1770076232248,-500.0,0.00045528,7]
[404359853,1770076232257,-500.0,0.00045528,120]
[404359854,1770076232267,-500.0,0.00045528,7]
[404359855,1770076232276,-500.0,0.00045528,31]
[404359856,1770076232285,-500.0,0.00045528,7]
[404359857,1770076232294,-500.0,0.00045528,31]
[404359858,1770076232305,-500.0,0.00045528,120]
[404359859,1770076232315,-500.0,0.00045528,7]
[404359860,1770076232324,-500.0,0.00045528,31]
[404359861,1770076232333,-500.0,0.00045528,120]
[404359862,1770076232344,-500.0,0.00045528,7]
[404359863,1770076232354,-500.0,0.00045528,31]
[404359864,1770076232363,-500.0,0.00045528,7]
[404359865,1770076232372,-500.0,0.00045528,120]
[404359866,1770076232385,-500.0,0.00045528,7]
[404359867,1770076232394,-500.0,0.00045528,31]
[404359868,1770076232404,-500.0,0.00045528,120]
[404359869,1770076232412,-206.2248971,0.00045528,7]
[404359870,1770076232423,-500.0,0.00045528,31]
[404359871,1770076232432,-500.0,0.00045528,120]
[404359872,1770076232443,-500.0,0.00045528,7]
[404359873,1770076232454,-500.0,0.00045528,31]
[404359874,1770076232464,-500.0,0.00045528,120]
[404359875,1770076232474,-500.0,0.00045528,7]
[404359876,1770076232484,-500.0,0.00045528,7]
[404359877,1770076232494,-500.0,0.00045528,120]
[404359878,1770076232503,-500.0,0.00045528,31]
[404359879,1770076232515,-500.0,0.00045528,7]
[404359880,1770076232524,-500.0,0.00045528,31]
[404359881,1770076232535,-500.0,0.00045528,120]
[404359882,1770076232545,-500.0,0.00045528,7]
[404359883,1770076232556,-500.0,0.00045528,7]
[404359884,1770076232565,-163.38274424,0.00045528,120]
[404359885,1770076232575,-432.26644663,0.00045528,31]
[404359886,1770076232586,-500.0,0.00045528,7]
[404359887,1770076232596,-500.0,0.00045528,7]
[404359888,1770076232606,-500.0,0.00045528,31]
[404359889,1770076232687,-500.0,0.00045528,7]
[404359890,1770076232696,-500.0,0.00045528,31]
[404359891,1770076232706,-500.0,0.00045528,120]
[404359892,1770076232715,-500.0,0.00045528,7]
[404359893,1770076232724,-500.0,0.00045528,7]
[404359894,1770076232735,-500.0,0.00045528,120]
[404359895,1770076232747,-500.0,0.00045528,31]
[404359896,1770076232757,-500.0,0.00045528,7]
[404359897,1770076232767,-500.0,0.00045528,120]
[404359898,1770076232779,-500.0,0.00045528,31]
[404359899,1770076232789,-500.0,0.00045528,7]
[404359900,1770076232799,-500.0,0.00045528,120]
[404359901,1770076232809,-500.0,0.00045528,31]
[404359902,1770076232818,-500.0,0.00045528,31]
[404359903,1770076232828,-500.0,0.00045528,31]
[404359904,1770076232837,-500.0,0.00045528,7]
[404359905,1770076232847,-499.99999999,0.00045528,7]
[404359906,1770076232856,-17109.47142851,0.00045532,2]
[404359907,1770076232868,-7174.15975899,0.00045532,2]
[404359908,1770076232877,-336.94948332,0.00049688,2]
[404359909,1770076232886,-500.0,0.00049788,2]
[404359910,1770076232895,-500.0,0.00049999,2]
[404359911,1770076232904,-389.93748134,0.00049999,2]
[404359912,1770076232914,-154.0,0.0005,120]
[404359913,1770076232923,-154.0,0.000509,120]
[404359914,1770076232933,-154.0,0.000517,120]
[404359915,1770076232942,-336.9494833,0.00052201,2]
[404359916,1770076232952,-154.0,0.000526,120]
[404359917,1770076232962,-165.52300001,0.000526,120]
[404359918,1770076232971,-154.0,0.000535,120]
[404359919,1770076232981,-1607.46464211,0.00053973,60]
[404359920,1770076232990,-154.0,0.000544,120]
[404359921,1770076233000,-288.53028386,0.00054694,26]
[404359922,1770076233009,-336.9494833,0.00054714,2]
[404359923,1770076233018,-254.571135,0.00054784,4]
[404359924,1770076233028,-624.69,0.00054784,10]
[404359925,1770076233037,-520.58,0.00054784,10]
[404359926,1770076233047,-433.82,0.00054784,10]
[404359927,1770076233056,-446.21296515,0.00054794,120]
[404359928,1770076233065,-11605.41,0.00054794,120]
[404359929,1770076233074,-500.0,0.00054794,120]
[404359930,1770076233084,-892.05,0.00054794,120]
[404359931,1770076233093,-500.0,0.00054794,120]
[404359932,1770076233103,-1000.0,0.00054794,2]
[404359933,1770076233112,-577.36,0.00054794,120]
[404359934,1770076233121,-500.0,0.00054794,120]
[404359935,1770076233132,-500.0,0.00054794,120]
[404359936,1770076233141,-500.0,0.00054794,120]
[404359937,1770076233150,-500.0,0.00054794,120]
[404359938,1770076233160,-500.49033839,0.00054794,120]
[404359939,1770076233169,-500.0,0.00054794,120]
[404359940,1770076233178,-1047.62,0.00054794,120]
[404359941,1770076233188,-500.0,0.00054794,120]
[404359942,1770076233199,-509.98098714,0.00054794,120]
[404359943,1770076233209,-500.0,0.00054794,2]
[404359944,1770076233218,-500.0,0.00054794,120]
[404359945,1770076233227,-610.08962668,0.00054794,2]
[404359946,1770076233237,-500.0,0.00054794,120]
[404359947,1770076233246,-672.05,0.00054794,120]
[404359948,1770076233255,-500.0,0.00054794,120]
[404359949,1770076233264,-500.0,0.00054794,120]
[404359950,1770076233274,-1922.91,0.00054794,120]
[404359951,1770076233283,-500.0,0.00054794,120]
[404359952,1770076233293,-500.0,0.00054794,120]
[404359953,1770076233302,-540.26,0.00054794,120]
[404359954,1770076233311,-366.79888464,0.00054794,120]
[404359955,1770076233321,-3377.39397467,0.00054794,120]
[404359956,1770076233333,-385.84602533,0.00054794,120]
[404359957,1770076233343,-500.0,0.00054794,120]
[404359958,1770076233353,-500.0,0.00054794,120]
[404359959,1770076233363,-500.0,0.00054794,120]
[404359960,1770076233373,-500.0,0.00054794,2]
[404359961,1770076233386,-1787.79,0.00054794,120]
[404359962,1770076233395,-1671.05,0.00054794,120]
[404359963,1770076233405,-16054.04,0.00054794,120]
[404359964,1770076233415,-500.0,0.00054794,120]